fUST/lending_fUST_20240508
["ID","MTS","AMOUNT","RATE_DAILY","PERIOD"]
[326614693,1715149631323,-1548.95,0.000157,2]
[326614694,1715149631346,-153.0,0.000157,2]
[326614695,1715149631371,-570.29,0.000157,2]
[326614696,1715149631397,-2832.08,0.000157,2]
[326614697,1715149631424,-500.0,0.000157,2]
[326614698,1715149631450,-500.0,0.000157,2]
[326614699,1715149631474,-1356.32,0.000157,2]
[326614700,1715149631499,-1193.45,0.000157,2]
[326614701,1715149631523,-2330.2,0.000157,2]
[326614702,1715149631547,-821.67,0.000157,2]
[326614703,1715149631572,-1286.52,0.000157,2]
[326614704,1715149631596,-153.0,0.000157,2]
[326614705,1715149631618,-500.0,0.000157,2]
[326614706,1715149631641,-1329.9,0.000157,2]
[326614707,1715149631668,-306.0,0.000157,2]
[326614708,1715149631692,-500.0,0.000157,2]
[326614709,1715149631720,-1395.98,0.000157,2]
[326614710,1715149631745,-2033.32,0.000157,2]
[326614711,1715149631768,-500.0,0.00015701,2]
[326614712,1715149631790,-267.22338213,0.00015701,2]
[326614713,1715149631813,-500.0,0.00015701,2]
[326614714,1715149631836,-458.53409249,0.00015701,2]
[326614715,1715149631860,-321.11781011,0.00015701,2]
[326614716,1715149631883,-500.0,0.00015701,2]
[326614717,1715149631906,-500.0,0.00015701,2]
[326614718,1715149631934,-500.0,0.00015701,2]
[326614719,1715149631961,-302.9381499,0.000158,2]
[326614720,1715149631984,-153.688232,0.000158,2]
[326614721,1715149632008,-306.0,0.000158,2]
[326614722,1715149632032,-153.0,0.000158,2]
[326614723,1715149632055,-620.00013104,0.000158,2]
[326614724,1715149632079,-343.0,0.00015887,2]
[326614725,1715149632102,-150.0,0.00015887,2]
[326614726,1715149632129,-165.471307,0.0001589,2]
[326614727,1715149632154,-303.047557,0.0001589,2]
[326614728,1715149632182,-228.833012,0.0001589,2]
[326614729,1715149632207,-365.714985,0.0001589,2]
[326614730,1715149632233,-161.701694,0.0001589,2]
[326614731,1715149632257,-153.0,0.000159,2]
[326614732,1715149632282,-2000.0,0.0001595,2]
[326614733,1715149632307,-500.0,0.00015973,2]
[326614734,1715149632333,-2145.45,0.00015973,2]
[326614735,1715149632360,-481.72347988,0.00015973,2]
[326614736,1715149632602,-1971.54652012,0.00015973,2]
[326614737,1715149632626,-500.0,0.00015973,2]
[326614738,1715149632649,-500.0,0.00015973,2]
[326614739,1715149632675,-500.0,0.00015973,2]
[326614740,1715149632697,-500.0,0.00015973,2]
[326614741,1715149632721,-1696.58,0.00015973,2]
[326614742,1715149632745,-786.21,0.00015973,2]
[326614743,1715149632766,-778.09,0.00015973,2]
[326614744,1715149632791,-602.47,0.00015973,2]
[326614745,1715149632814,-500.0,0.00015973,2]
[326614746,1715149632836,-500.0,0.00015973,2]
[326614747,1715149632858,-632.02,0.00015973,2]
[326614748,1715149632880,-829.23,0.00015973,2]
[326614749,1715149632903,-500.0,0.00015973,2]
[326614750,1715149632927,-500.0,0.00015973,2]
[326614751,1715149632951,-474.9154708,0.00015974,5]
[326614752,1715149632972,-500.0,0.00015974,2]
[326614753,1715149632994,-720.27,0.00015974,2]
[326614754,1715149633016,-500.0,0.00015974,2]
[326614755,1715149633040,-500.0,0.00015974,2]
[326614756,1715149633063,-666.13,0.00015974,2]
[326614757,1715149633085,-589.7,0.00015974,2]
[326614758,1715149633243,-161.36391723,0.00015974,2]
[326614759,1715149633265,-607.7,0.00015974,2]
[326614760,1715149633287,-500.0,0.00015974,2]
[326614761,1715149633309,-500.0,0.00015974,2]
[326614762,1715149633333,-8317.1,0.00015974,2]
[326614763,1715149633356,-1251.71,0.00015974,2]
[326614764,1715149633378,-711.11,0.00015974,2]
[326614765,1715149633402,-1548.95,0.00015974,2]
[326614766,1715149633425,-570.29,0.00015974,2]
[326614767,1715149633447,-2832.08,0.00015974,2]
[326614768,1715149633469,-500.0,0.00015974,2]
[326614769,1715149633491,-500.0,0.00015974,2]
[326614770,1715149633515,-1356.32,0.00015974,2]
[326614771,1715149633536,-1193.45,0.00015974,2]
[326614772,1715149633560,-2330.2,0.00015974,2]
[326614773,1715149633584,-821.67,0.00015974,2]
[326614774,1715149633610,-1286.52,0.00015974,2]
[326614775,1715149633632,-500.0,0.00015974,2]
[326614776,1715149633655,-1329.9,0.00015974,2]
[326614777,1715149633679,-500.0,0.00015974,2]
[326614778,1715149633969,-1395.98,0.00015974,2]
[326614779,1715149633993,-2033.32,0.00015974,2]
[326614780,1715149634018,-500.0,0.00015975,2]
[326614781,1715149634040,-500.0,0.00015975,2]
[326614782,1715149634062,-500.0,0.00015975,2]
[326614783,1715149634084,-500.0,0.00015975,2]
[326614784,1715149634108,-500.0,0.00015975,2]
[326614785,1715149634131,-702.50594434,0.0001599,2]
[326614786,1715149634152,-894.24108922,0.00016,2]
[326614787,1715149634176,-7949.13788461,0.00016,2]
[326614788,1715149634199,-55555.0,0.00016071,2]
[326614789,1715149634222,-343.0,0.0001616,2]
[326614790,1715149634245,-150.0,0.0001616,2]
[326614791,1715149634268,-500.0,0.00016247,2]
[326614792,1715149634291,-2145.45,0.00016247,2]
[326614793,1715149634316,-2453.27,0.00016247,2]
[326614794,1715149634338,-558.78440979,0.00016247,2]
[326614795,1715149634361,-500.0,0.00016247,2]
[326614796,1715149634383,-500.0,0.00016247,2]
[326614797,1715149634411,-500.0,0.00016247,2]
[326614798,1715149634436,-1696.58,0.00016247,2]
[326614799,1715149634461,-786.21,0.00016247,2]
[326614800,1715149634485,-778.09,0.00016247,2]
[326614801,1715149634510,-602.47,0.00016247,2]
[326614802,1715149634532,-500.0,0.00016247,2]
[326614803,1715149634556,-500.0,0.00016247,2]
[326614804,1715149634582,-632.02,0.00016247,2]
[326614805,1715149634620,-829.23,0.00016247,2]
[326614806,1715149634646,-500.0,0.00016247,2]
[326614807,1715149634673,-500.0,0.00016247,2]
[326614808,1715149634698,-500.0,0.00016248,2]
[326614809,1715149634722,-720.27,0.00016248,2]
[326614810,1715149634750,-500.0,0.00016248,2]
[326614811,1715149634775,-500.0,0.00016248,2]
[326614812,1715149634799,-666.13,0.00016248,2]
[326614813,1715149634823,-589.7,0.00016248,2]
[326614814,1715149634848,-607.7,0.00016248,2]
[326614815,1715149634871,-500.0,0.00016248,2]
[326614816,1715149634895,-500.0,0.00016248,2]
[326614817,1715149634920,-8317.1,0.00016248,2]
[326614818,1715149634943,-1251.71,0.00016248,2]
[326614819,1715149634967,-711.11,0.00016248,2]
[326614820,1715149634991,-1548.95,0.00016248,2]
[326614821,1715149635015,-570.29,0.00016248,2]
[326614822,1715149635038,-2832.08,0.00016248,2]
[326614823,1715149635061,-500.0,0.00016248,2]
[326614824,1715149635084,-500.0,0.00016248,2]
[326614825,1715149635110,-1356.32,0.00016248,2]
[326614826,1715149635134,-1193.45,0.00016248,2]
[326614827,1715149635158,-2330.2,0.00016248,2]
[326614828,1715149635183,-821.67,0.00016248,2]
[326614829,1715149635209,-1286.52,0.00016248,2]
[326614830,1715149635232,-500.0,0.00016248,2]
[326614831,1715149635255,-1329.9,0.00016248,2]
[326614832,1715149635279,-500.0,0.00016248,2]
[326614833,1715149635302,-1395.98,0.00016248,2]
[326614834,1715149635326,-2033.32,0.00016248,2]
[326614835,1715149635347,-500.0,0.00016249,2]
[326614836,1715149635370,-500.0,0.00016249,2]
[326614837,1715149635392,-500.0,0.00016249,2]
[326614838,1715149635420,-421.24367445,0.00016249,2]
[326614839,1715149635443,-212.10808392,0.00016249,2]
[326614840,1715149635466,-343.0,0.00016432,2]
[326614841,1715149635488,-150.0,0.00016432,2]
[326614842,1715149635511,-461.2961289,0.00016438,2]
[326614843,1715149635534,-273.3300509,0.000165,2]
[326614844,1715149635558,-500.0,0.00016521,2]
[326614845,1715149635582,-2145.45,0.00016521,2]
[326614846,1715149635607,-2453.27,0.00016521,2]
[326614847,1715149635631,-500.0,0.00016521,2]
[326614848,1715149635654,-500.0,0.00016521,2]
[326614849,1715149635682,-500.0,0.00016521,2]
[326614850,1715149635705,-1696.58,0.00016521,2]
[326614851,1715149635727,-786.21,0.00016521,2]
[326614852,1715149635749,-778.09,0.00016521,2]
[326614853,1715149635773,-602.47,0.00016521,2]
[326614854,1715149635795,-500.0,0.00016521,2]
[326614855,1715149635818,-500.0,0.00016521,2]
[326614856,1715149635841,-632.02,0.00016521,2]
[326614857,1715149635864,-829.23,0.00016521,2]
[326614858,1715149635886,-500.0,0.00016521,2]
[326614859,1715149635909,-500.0,0.00016521,2]
[326614860,1715149635931,-500.0,0.00016522,2]
[326614861,1715149635953,-720.27,0.00016522,2]
[326614862,1715149635975,-500.0,0.00016522,2]
[326614863,1715149635998,-500.0,0.00016522,2]
[326614864,1715149636020,-666.13,0.00016522,2]
[326614865,1715149636044,-589.7,0.00016522,2]
[326614866,1715149636066,-607.7,0.00016522,2]
[326614867,1715149636088,-500.0,0.00016522,2]
[326614868,1715149636113,-500.0,0.00016522,2]
[326614869,1715149636136,-8317.1,0.00016522,2]
[326614870,1715149636159,-1251.71,0.00016522,2]
[326614871,1715149636182,-711.11,0.00016522,2]
[326614872,1715149636206,-1548.95,0.00016522,2]
[326614873,1715149636228,-570.29,0.00016522,2]
[326614874,1715149636250,-2832.08,0.00016522,2]
[326614875,1715149636272,-500.0,0.00016522,2]
[326614876,1715149636295,-500.0,0.00016522,2]
[326614877,1715149636322,-1356.32,0.00016522,2]
[326614878,1715149636345,-1193.45,0.00016522,2]
[326614879,1715149636367,-2330.2,0.00016522,2]
[326614880,1715149636388,-821.67,0.00016522,2]
[326614881,1715149636412,-1286.52,0.00016522,2]
[326614882,1715149636435,-500.0,0.00016522,2]
[326614883,1715149636457,-1329.9,0.00016522,2]
[326614884,1715149636479,-500.0,0.00016522,2]
[326614885,1715149636502,-1395.98,0.00016522,2]
[326614886,1715149636524,-2033.32,0.00016522,2]
[326614887,1715149636546,-500.0,0.00016523,2]
[326614888,1715149636568,-500.0,0.00016523,2]
[326614889,1715149636590,-500.0,0.00016523,2]
[326614890,1715149636611,-234.62235358,0.0001659,2]
[326614891,1715149636632,-620.00000655,0.0001659,2]
[326614892,1715149636653,-306.7911321,0.00016693,2]
[326614893,1715149636680,-343.0,0.00016705,2]
[326614894,1715149636702,-500.0,0.00016795,2]
[326614895,1715149636725,-2145.45,0.00016795,2]
[326614896,1715149636748,-2453.27,0.00016795,2]
[326614897,1715149636770,-500.0,0.00016795,2]
[326614898,1715149636792,-500.0,0.00016795,2]
[326614899,1715149636814,-500.0,0.00016795,2]
[326614900,1715149636836,-1696.58,0.00016795,2]
[326614901,1715149636857,-786.21,0.00016795,2]
[326614902,1715149636879,-778.09,0.00016795,2]
[326614903,1715149636901,-602.47,0.00016795,2]
[326614904,1715149636925,-500.0,0.00016795,2]
[326614905,1715149636947,-500.0,0.00016795,2]
[326614906,1715149636969,-632.02,0.00016795,2]
[326614907,1715149636991,-829.23,0.00016795,2]
[326614908,1715149637012,-500.0,0.00016795,2]
[326614909,1715149637035,-500.0,0.00016795,2]
[326614910,1715149637060,-500.0,0.00016796,2]
[326614911,1715149637086,-720.27,0.00016796,2]
[326614912,1715149637111,-500.0,0.00016796,2]
[326614913,1715149637132,-500.0,0.00016796,2]
[326614914,1715149637155,-666.13,0.00016796,2]
[326614915,1715149637179,-589.7,0.00016796,2]
[326614916,1715149637203,-607.7,0.00016796,2]
[326614917,1715149637227,-613.36265487,0.00016796,2]
[326614918,1715149637248,-500.0,0.00016796,2]
[326614919,1715149637271,-8317.1,0.00016796,2]
[326614920,1715149637295,-1251.71,0.00016796,2]
[326614921,1715149637316,-711.11,0.00016796,2]
[326614922,1715149637339,-1548.95,0.00016796,2]
[326614923,1715149637360,-570.29,0.00016796,2]
[326614924,1715149637382,-2832.08,0.00016796,2]
[326614925,1715149637406,-500.0,0.00016796,2]
[326614926,1715149637430,-574.87739347,0.00016796,2]
[326614927,1715149637452,-1356.32,0.00016796,2]
[326614928,1715149637475,-1193.45,0.00016796,2]
[326614929,1715149637496,-2330.2,0.00016796,2]
[326614930,1715149637518,-821.67,0.00016796,2]
[326614931,1715149637681,-1286.52,0.00016796,2]
[326614932,1715149637703,-500.0,0.00016796,2]
[326614933,1715149637724,-1329.9,0.00016796,2]
[326614934,1715149637746,-369.80733797,0.00016796,2]
[326614935,1715149637768,-1395.98,0.00016796,2]
[326614936,1715149637790,-2033.32,0.00016796,2]
[326614937,1715149637811,-500.0,0.00016797,2]
[326614938,1715149637832,-500.0,0.00016797,2]
[326614939,1715149637854,-500.0,0.00016797,2]
[326614940,1715149637875,-160.849908,0.00016806,2]
[326614941,1715149637896,-181.484266,0.00016806,2]
[326614942,1715149637916,-167.554645,0.00016806,2]
[326614943,1715149637939,-704.685258,0.00016806,2]
[326614944,1715149637960,-837.316993,0.00016806,2]
[326614945,1715149637980,-155.08952046,0.00016867,2]
[326614946,1715149638003,-343.0,0.00016978,2]
[326614947,1715149638023,-10073.65205,0.00017,2]
[326614948,1715149638044,-1000.0,0.00017,2]
[326614949,1715149638065,-704.685258,0.00017016,2]
[326614950,1715149638086,-837.316993,0.00017016,2]
[326614951,1715149638110,-500.0,0.00017069,2]
[326614952,1715149638136,-2145.45,0.00017069,2]
[326614953,1715149638159,-2453.27,0.00017069,2]
[326614954,1715149638182,-500.0,0.00017069,2]
[326614955,1715149638206,-500.0,0.00017069,2]
[326614956,1715149638227,-500.0,0.00017069,2]
[326614957,1715149638249,-1696.58,0.00017069,2]
[326614958,1715149638271,-786.21,0.00017069,2]
[326614959,1715149638293,-778.09,0.00017069,2]
[326614960,1715149638314,-602.47,0.00017069,2]
[326614961,1715149638336,-500.0,0.00017069,2]
[326614962,1715149638358,-500.0,0.00017069,2]
[326614963,1715149638380,-632.02,0.00017069,2]
[326614964,1715149638404,-829.23,0.00017069,2]
[326614965,1715149638428,-500.0,0.00017069,2]
[326614966,1715149638451,-500.0,0.00017069,2]
[326614967,1715149638473,-720.27,0.0001707,2]
[326614968,1715149638495,-326.55280327,0.0001707,2]
[326614969,1715149638518,-500.0,0.0001707,2]
[326614970,1715149638540,-666.13,0.0001707,2]
[326614971,1715149638563,-589.7,0.0001707,2]
[326614972,1715149638584,-607.7,0.0001707,2]
[326614973,1715149638607,-500.0,0.0001707,2]
[326614974,1715149638630,-8317.1,0.0001707,2]
[326614975,1715149638652,-1251.71,0.0001707,2]
[326614976,1715149638677,-711.11,0.0001707,2]
[326614977,1715149638701,-1548.95,0.0001707,2]
[326614978,1715149638724,-570.29,0.0001707,2]
[326614979,1715149638747,-2832.08,0.0001707,2]
[326614980,1715149638768,-465.08526672,0.0001707,2]
[326614981,1715149638791,-1356.32,0.0001707,2]
[326614982,1715149638812,-1193.45,0.0001707,2]
[326614983,1715149638835,-2330.2,0.0001707,2]
[326614984,1715149638857,-821.67,0.0001707,2]
[326614985,1715149638880,-1286.52,0.0001707,2]
[326614986,1715149638901,-500.0,0.0001707,2]
[326614987,1715149638927,-1329.9,0.0001707,2]
[326614988,1715149638951,-1395.98,0.0001707,2]
[326614989,1715149638980,-2033.32,0.0001707,2]
[326614990,1715149639003,-500.0,0.00017071,2]
[326614991,1715149639025,-500.0,0.00017071,2]
[326614992,1715149639049,-500.0,0.00017071,2]
[326614993,1715149639072,-240.99639,0.00017087,2]
[326614994,1715149639096,-206.420256,0.00017087,2]
[326614995,1715149639124,-181.484271,0.00017087,2]
[326614996,1715149639146,-160.849909,0.00017087,2]
[326614997,1715149639167,-160.849909,0.00017087,2]
[326614998,1715149639193,-181.484267,0.00017087,2]
[326614999,1715149639220,-704.685258,0.00017226,2]
[326615000,1715149639242,-837.316993,0.00017226,2]
[326615001,1715149639264,-343.0,0.0001725,2]
[326615002,1715149639284,-240.99639,0.000173,2]
[326615003,1715149639304,-206.420256,0.000173,2]
[326615004,1715149639324,-500.0,0.00017343,2]
[326615005,1715149639346,-2145.45,0.00017343,2]
[326615006,1715149639368,-2453.27,0.00017343,2]
[326615007,1715149639390,-500.0,0.00017343,2]
[326615008,1715149639413,-500.0,0.00017343,2]
[326615009,1715149639437,-295.3832702,0.00017343,2]
[326615010,1715149639459,-1696.58,0.00017343,2]
[326615011,1715149639480,-786.21,0.00017343,2]
[326615012,1715149639502,-602.47,0.00017343,2]
[326615013,1715149639523,-778.09,0.00017343,2]
[326615014,1715149639545,-500.0,0.00017343,2]
[326615015,1715149639567,-500.0,0.00017343,2]
[326615016,1715149639589,-632.02,0.00017343,2]
[326615017,1715149639611,-829.23,0.00017343,2]
[326615018,1715149639634,-500.0,0.00017343,2]
[326615019,1715149639657,-500.0,0.00017343,2]
[326615020,1715149639682,-720.27,0.00017344,2]
[326615021,1715149639704,-500.0,0.00017344,2]
[326615022,1715149639725,-666.13,0.00017344,2]
[326615023,1715149639747,-589.7,0.00017344,2]
[326615024,1715149639769,-607.7,0.00017344,2]
[326615025,1715149639791,-500.0,0.00017344,2]
[326615026,1715149639814,-5699.35893653,0.00017344,2]
[326615027,1715149639904,-2617.74106347,0.00017344,2]
[326615028,1715149639926,-1251.71,0.00017344,2]
[326615029,1715149639948,-711.11,0.00017344,2]
[326615030,1715149639968,-1548.95,0.00017344,2]
[326615031,1715149639990,-570.29,0.00017344,2]
[326615032,1715149640011,-2832.08,0.00017344,2]
[326615033,1715149640032,-1356.32,0.00017344,2]
[326615034,1715149640053,-1193.45,0.00017344,2]
[326615035,1715149640074,-2330.2,0.00017344,2]
[326615036,1715149640095,-821.67,0.00017344,2]
[326615037,1715149640120,-1286.52,0.00017344,2]
[326615038,1715149640140,-500.0,0.00017344,2]
[326615039,1715149640161,-1329.9,0.00017344,2]
[326615040,1715149640184,-1395.98,0.00017344,2]
[326615041,1715149640205,-855.71295653,0.00017344,2]
[326615042,1715149640300,-1177.60704347,0.00017344,2]
[326615043,1715149640320,-500.0,0.00017345,2]
[326615044,1715149640342,-500.0,0.00017345,2]
[326615045,1715149640363,-500.0,0.00017345,2]
[326615046,1715149640384,-620.00000033,0.0001742,2]
[326615047,1715149640406,-704.685258,0.00017436,2]
[326615048,1715149640430,-837.316993,0.00017436,2]
[326615049,1715149640451,-153.0,0.00017507,2]
[326615050,1715149640472,-240.99639,0.00017514,2]
[326615051,1715149640492,-206.420256,0.00017514,2]
[326615052,1715149640513,-343.0,0.00017523,2]
[326615053,1715149640533,-500.0,0.00017617,2]
[326615054,1715149640555,-2145.45,0.00017617,2]
[326615055,1715149640576,-2453.27,0.00017617,2]
[326615056,1715149640597,-500.0,0.00017617,2]
[326615057,1715149640617,-500.0,0.00017617,2]
[326615058,1715149640638,-1696.58,0.00017617,2]
[326615059,1715149640658,-786.21,0.00017617,2]
[326615060,1715149640680,-602.47,0.00017617,2]
[326615061,1715149640701,-778.09,0.00017617,2]
[326615062,1715149640721,-500.0,0.00017617,2]
[326615063,1715149640742,-500.0,0.00017617,2]
[326615064,1715149640763,-632.02,0.00017617,2]
[326615065,1715149640785,-829.23,0.00017617,2]
[326615066,1715149640806,-500.0,0.00017617,2]
[326615067,1715149640827,-500.0,0.00017617,2]
[326615068,1715149640849,-720.27,0.00017618,2]
[326615069,1715149640869,-500.0,0.00017618,2]
[326615070,1715149640890,-666.13,0.00017618,2]
[326615071,1715149640910,-589.7,0.00017618,2]
[326615072,1715149640930,-607.7,0.00017618,2]
[326615073,1715149640950,-500.0,0.00017618,2]
[326615074,1715149640977,-8317.1,0.00017618,2]
[326615075,1715149640998,-1251.71,0.00017618,2]
[326615076,1715149641020,-711.11,0.00017618,2]
[326615077,1715149641043,-1548.95,0.00017618,2]
[326615078,1715149641066,-570.29,0.00017618,2]
[326615079,1715149641089,-2832.08,0.00017618,2]
[326615080,1715149641111,-1356.32,0.00017618,2]
[326615081,1715149641134,-1193.45,0.00017618,2]
[326615082,1715149641155,-2330.2,0.00017618,2]
[326615083,1715149641185,-821.67,0.00017618,2]
[326615084,1715149641207,-1286.52,0.00017618,2]
[326615085,1715149641228,-500.0,0.00017618,2]
[326615086,1715149641248,-1329.9,0.00017618,2]
[326615087,1715149641269,-1395.98,0.00017618,2]
[326615088,1715149641291,-2033.32,0.00017618,2]
[326615089,1715149641311,-500.0,0.00017619,2]
[326615090,1715149641332,-500.0,0.00017619,2]
[326615091,1715149641480,-500.0,0.00017619,2]
[326615092,1715149641503,-160.849908,0.00017646,2]
[326615093,1715149641524,-181.484266,0.00017646,2]
[326615094,1715149641546,-704.685258,0.00017646,2]
[326615095,1715149641569,-837.316993,0.00017646,2]
[326615096,1715149641590,-240.99639,0.00017727,2]
[326615097,1715149641611,-206.420256,0.00017727,2]
[326615098,1715149641632,-153.0,0.00017753,2]
[326615099,1715149641652,-306.0,0.00017753,2]
[326615100,1715149641676,-153.0,0.00017766,2]
[326615101,1715149641697,-306.0,0.00017766,2]
[326615102,1715149641717,-153.0,0.00017766,2]
[326615103,1715149641738,-343.0,0.00017795,2]
[326615104,1715149641759,-500.0,0.00017891,2]
[326615105,1715149641781,-2145.45,0.00017891,2]
[326615106,1715149641802,-2453.27,0.00017891,2]
[326615107,1715149641824,-500.0,0.00017891,2]
[326615108,1715149641844,-500.0,0.00017891,2]
[326615109,1715149641866,-1696.58,0.00017891,2]
[326615110,1715149641887,-786.21,0.00017891,2]
[326615111,1715149641909,-602.47,0.00017891,2]
[326615112,1715149641933,-778.09,0.00017891,2]
[326615113,1715149641955,-500.0,0.00017891,2]
[326615114,1715149641975,-500.0,0.00017891,2]
[326615115,1715149641997,-632.02,0.00017891,2]
[326615116,1715149642019,-829.23,0.00017891,2]
[326615117,1715149642042,-500.0,0.00017891,2]
[326615118,1715149642064,-500.0,0.00017891,2]
[326615119,1715149642085,-720.27,0.00017892,2]
[326615120,1715149642107,-500.0,0.00017892,2]
[326615121,1715149642131,-666.13,0.00017892,2]
[326615122,1715149642152,-589.7,0.00017892,2]
[326615123,1715149642176,-607.7,0.00017892,2]
[326615124,1715149642197,-500.0,0.00017892,2]
[326615125,1715149642222,-8317.1,0.00017892,2]
[326615126,1715149642244,-1251.71,0.00017892,2]
[326615127,1715149642265,-711.11,0.00017892,2]
[326615128,1715149642286,-1548.95,0.00017892,2]
[326615129,1715149642309,-570.29,0.00017892,2]
[326615130,1715149642331,-2832.08,0.00017892,2]
[326615131,1715149642352,-1356.32,0.00017892,2]
[326615132,1715149642373,-1193.45,0.00017892,2]
[326615133,1715149642394,-2330.2,0.00017892,2]
[326615134,1715149642418,-821.67,0.00017892,2]
[326615135,1715149642441,-1286.52,0.00017892,2]
[326615136,1715149642462,-500.0,0.00017892,2]
[326615137,1715149642483,-1329.9,0.00017892,2]
[326615138,1715149642505,-1395.98,0.00017892,2]
[326615139,1715149642528,-2033.32,0.00017892,2]
[326615140,1715149642548,-500.0,0.00017893,2]
[326615141,1715149642569,-500.0,0.00017893,2]
[326615142,1715149642590,-500.0,0.00017893,2]
[326615143,1715149642610,-240.99639,0.00017941,2]
[326615144,1715149642630,-206.420256,0.00017941,2]
[326615145,1715149642651,-875.09060656,0.00018,2]
[326615146,1715149642673,-218.29659128,0.00018,2]
[326615147,1715149642694,-7359.38575588,0.00018,2]
[326615148,1715149642714,-6551.37389848,0.00018,2]
[326615149,1715149643200,-8446.62610152,0.00018,2]
[326615150,1715149643219,-1030.70572005,0.00018,2]
[326615151,1715149643239,-203.07748282,0.00018,2]
[326615152,1715149643260,-343.0,0.00018068,2]
[326615153,1715149643284,-410.83532807,0.00018165,2]
[326615154,1715149643306,-2145.45,0.00018165,2]
[326615155,1715149643328,-2453.27,0.00018165,2]
[326615156,1715149643350,-500.0,0.00018165,2]
[326615157,1715149643371,-500.0,0.00018165,2]
[326615158,1715149643393,-1696.58,0.00018165,2]
[326615159,1715149643418,-786.21,0.00018165,2]
[326615160,1715149643442,-602.47,0.00018165,2]
[326615161,1715149643462,-778.09,0.00018165,2]
[326615162,1715149643484,-500.0,0.00018165,2]
[326615163,1715149643504,-500.0,0.00018165,2]
[326615164,1715149643525,-632.02,0.00018165,2]
[326615165,1715149643547,-829.23,0.00018165,2]
[326615166,1715149643569,-500.0,0.00018165,2]
[326615167,1715149643591,-500.0,0.00018165,2]
[326615168,1715149643612,-720.27,0.00018166,2]
[326615169,1715149643633,-500.0,0.00018166,2]
[326615170,1715149643655,-666.13,0.00018166,2]
[326615171,1715149643677,-589.7,0.00018166,2]
[326615172,1715149643699,-607.7,0.00018166,2]
[326615173,1715149643721,-500.0,0.00018166,2]
[326615174,1715149643744,-8317.1,0.00018166,2]
[326615175,1715149643765,-1251.71,0.00018166,2]
[326615176,1715149643787,-711.11,0.00018166,2]
[326615177,1715149643809,-1548.95,0.00018166,2]
[326615178,1715149643830,-570.29,0.00018166,2]
[326615179,1715149643850,-2832.08,0.00018166,2]
[326615180,1715149643871,-1356.32,0.00018166,2]
[326615181,1715149643894,-1193.45,0.00018166,2]
[326615182,1715149643914,-2330.2,0.00018166,2]
[326615183,1715149643935,-821.67,0.00018166,2]
[326615184,1715149643956,-1286.52,0.00018166,2]
[326615185,1715149643976,-500.0,0.00018166,2]
[326615186,1715149643996,-1329.9,0.00018166,2]
[326615187,1715149644018,-1395.98,0.00018166,2]
[326615188,1715149644040,-2033.32,0.00018166,2]
[326615189,1715149644060,-500.0,0.00018167,2]
[326615190,1715149644081,-500.0,0.00018167,2]
[326615191,1715149644101,-500.0,0.00018167,2]
[326615192,1715149644125,-620.00000002,0.00018291,2]